bitfinex-derivatives/quotes_BTCF0:USTF0_20230102
["timestamp","ask_amount","ask_price","bid_price","bid_amount"]
[1672696639165,0.3043,16750.0,16747.0,0.6864]
[1672696639368,0.3043,16750.0,16749.0,0.1044]
[1672696639369,0.2,16750.0,16749.0,0.1044]
[1672696640743,0.211,16750.0,16749.0,0.1054]
[1672696641901,0.211,16750.0,16749.0,0.4061]
[1672696646836,0.211,16750.0,16749.0,0.1054]
[1672696647051,0.211,16750.0,16749.0,0.4061]
[1672696647253,0.211,16750.0,16749.0,0.4063]
[1672696653766,0.211,16750.0,16749.0,0.1056]
[1672696653983,0.211,16750.0,16749.0,0.4063]
[1672696655246,0.211,16750.0,16749.0,0.40613848]
[1672696662811,0.211,16750.0,16749.0,0.10543848]
[1672696663014,0.211,16750.0,16749.0,0.40613848]
[1672696663964,0.011,16750.0,16749.0,0.40613848]
[1672696665643,0.011,16750.0,16749.0,0.10543848]
[1672696665964,0.011,16750.0,16749.0,0.40613848]
[1672696675950,0.011,16750.0,16749.0,0.10543848]
[1672696676166,0.011,16750.0,16749.0,0.40613848]
[1672696681424,0.011,16750.0,16749.0,0.10543848]
[1672696681636,0.011,16750.0,16749.0,0.40613848]
[1672696684576,0.011,16750.0,16749.0,0.10543848]
[1672696684794,0.011,16750.0,16749.0,0.40613848]
[1672696688559,0.011,16750.0,16749.0,0.10543848]
[1672696688769,0.011,16750.0,16749.0,0.40613848]
[1672696694545,0.011,16750.0,16749.0,1.10823848]
[1672696694760,6e-05,16754.0,16750.0,0.7974]
[1672696694979,6e-05,16754.0,16753.0,0.3047]
[1672696696021,0.00106,16754.0,16753.0,0.3157]
[1672696696231,0.20106,16754.0,16753.0,0.3157]
[1672696696656,0.00106,16754.0,16753.0,0.4186]
[1672696697280,0.00106,16754.0,16753.0,0.3145]
[1672696698341,0.00106,16754.0,16753.0,0.9119]
[1672696698541,0.00106,16754.0,16753.0,1.7481]
[1672696698972,0.00106,16754.0,16753.0,1.1207]
[1672696699391,0.1047,16759.0,16755.0,0.5974]
[1672696699604,0.2,16758.0,16757.0,0.1047]
[1672696699914,0.5007,16758.0,16757.0,0.1047]
[1672696700328,0.6054,16758.0,16756.0,0.3038]
[1672696701277,0.6054,16758.0,16756.0,0.1038]
[1672696701907,0.5007,16758.0,16757.0,0.011]
[1672696702226,0.7101,16758.0,16756.0,0.011]
[1672696702432,0.209,16757.0,16756.0,0.011]
[1672696702641,0.509,16757.0,16754.0,0.2]
[1672696702851,0.1047,16755.0,16754.0,0.2]
[1672696704110,0.1047,16755.0,16754.0,0.211]
[1672696706950,0.1047,16755.0,16754.0,0.011]
[1672696707159,0.1047,16755.0,16754.0,0.3154]
[1672696709897,0.3038,16756.0,16754.0,1.2137]
[1672696710106,0.5007,16758.0,16755.0,0.2082]
[1672696710107,0.6054,16758.0,16755.0,0.2082]
[1672696710314,0.6054,16758.0,16756.0,0.3041]
[1672696710847,0.6054,16758.0,16757.0,0.1]
[1672696711899,0.6054,16758.0,16757.0,0.11]
[1672696712109,0.3047,16758.0,16757.0,0.11]
[1672696712423,0.3047,16758.0,16757.0,0.01]
[1672696716406,0.3047,16758.0,16757.0,0.6074]
[1672696716614,0.2,16759.0,16757.0,0.7121]
[1672696716830,0.2,16759.0,16758.0,0.3047]
[1672696717250,0.2,16759.0,16758.0,0.3044]
[1672696717890,0.2,16759.0,16758.0,0.3154]
[1672696721149,0.1047,16761.0,16759.0,0.5974]
[1672696721459,0.4044,16764.0,16761.0,0.5974]
[1672696721667,0.2,16763.0,16760.0,1.006]
[1672696721987,0.2,16763.0,16762.0,0.1044]
[1672696722195,0.4044,16764.0,16762.0,0.1044]
[1672696722508,0.3007,16773.0,16763.0,1.4685]
[1672696722727,0.94147501,16777.0,16763.0,1.4685]
[1672696722728,0.3007,16775.0,16772.0,0.1044]
[1672696722939,0.3007,16775.0,16771.0,0.1047]
[1672696722940,0.3007,16775.0,16774.0,0.1045]
[1672696723456,0.0008,16779.0,16775.0,0.2343]
[1672696723772,0.94147501,16782.0,16780.0,0.3006]
[1672696723978,0.089,16785.0,16782.0,0.57388]
[1672696724193,0.0008,16791.0,16782.0,1.17297]
[1672696724397,0.0008,16791.0,16787.0,0.3007]
[1672696724607,0.0008,16791.0,16788.0,0.5983]
[1672696724814,0.105,16802.0,16795.0,0.3007]
[1672696724815,0.0008,16802.0,16795.0,0.3007]
[1672696725027,0.0008,16802.0,16799.0,0.5093]
[1672696725242,4.0,16800.0,16799.0,0.22823001]
[1672696725451,3.74612,16800.0,16799.0,0.4048]
[1672696725653,3.00292,16800.0,16799.0,0.33260001]
[1672696725870,1.6733612,16800.0,16799.0,1.79780001]
[1672696726080,0.0008,16802.0,16800.0,0.03358136]
[1672696726296,0.3007,16807.0,16801.0,0.3007]
[1672696726497,0.3,16805.0,16798.0,0.1045]
[1672696726816,0.3007,16802.0,16801.0,0.2084]
[1672696727026,0.3037,16806.0,16801.0,0.3124]
[1672696727241,0.3007,16803.0,16801.0,0.104]
[1672696727549,0.3007,16805.0,16800.0,0.1055]
[1672696727758,0.2,16806.0,16800.0,0.1038]
[1672696727759,0.3007,16803.0,16800.0,0.1038]
[1672696728079,0.3,16802.0,16798.0,0.1047]
[1672696728289,0.6007,16801.0,16796.0,0.1047]
[1672696728609,0.2,16800.0,16798.0,0.1041]
[1672696728817,0.1041,16798.0,16793.0,0.1044]
[1672696729025,0.1041,16798.0,16791.0,0.1048]
[1672696729026,0.3007,16796.0,16791.0,0.1048]
[1672696729233,0.3007,16794.0,16790.0,0.1049]
[1672696729443,0.2,16793.0,16792.0,0.104]
[1672696729664,0.2,16793.0,16791.0,0.1047]
[1672696729868,0.3007,16792.0,16791.0,0.1047]
[1672696730295,0.1047,16791.0,16788.0,0.1047]
[1672696730503,0.1047,16791.0,16787.0,0.1038]
[1672696730504,0.1045,16789.0,16787.0,0.1038]
[1672696730715,0.1045,16789.0,16783.0,0.4047]
[1672696730716,0.3007,16788.0,16783.0,0.1047]
[1672696731023,0.5094,16791.0,16785.0,0.1047]
[1672696731024,0.27722327,16786.0,16785.0,0.1047]
[1672696731237,0.1041,16787.0,16785.0,0.1047]
[1672696731451,0.3047,16786.0,16783.0,0.1041]
[1672696731651,0.1047,16784.0,16782.0,0.1047]
[1672696731863,0.1041,16783.0,16781.0,0.1047]
[1672696732068,0.4048,16783.0,16781.0,0.1047]
[1672696732280,0.1047,16782.0,16778.0,0.3007]
[1672696732492,0.1047,16780.0,16778.0,0.4054]
[1672696732807,0.2,16786.0,16780.0,0.26220775]
[1672696733133,0.3007,16790.0,16785.0,0.3007]
[1672696733334,0.2,16789.0,16787.0,0.104]
[1672696733550,0.2,16789.0,16788.0,0.1047]
[1672696733971,0.1047,16788.0,16786.0,0.1041]
[1672696734285,0.7052,16787.0,16781.0,0.3007]
[1672696734486,0.3007,16783.0,16780.0,0.26220775]
[1672696735116,0.6131,16781.0,16777.0,0.0001055]
[1672696735329,0.1047,16778.0,16777.0,0.0001055]
[1672696735539,0.3047,16778.0,16777.0,0.0001055]
[1672696736486,0.3047,16778.0,16777.0,5.5e-06]
[1672696736700,0.4094,16778.0,16777.0,5.5e-06]
[1672696737120,0.1047,16777.0,16772.0,0.1041]
[1672696737332,0.1037,16775.0,16772.0,0.45]
[1672696737540,0.3007,16783.0,16775.0,0.5974]
[1672696737745,0.3007,16783.0,16779.0,0.3007]
[1672696738175,0.2,16782.0,16780.0,0.3047]
[1672696738387,0.2,16782.0,16781.0,0.1047]
[1672696739435,0.3047,16782.0,16779.0,0.4048]
[1672696739645,0.1047,16780.0,16778.0,0.1046]
[1672696740174,0.1047,16779.0,16777.0,0.10386]
[1672696740388,0.3037,16778.0,16775.0,0.3007]
[1672696740599,0.1047,16777.0,16775.0,0.3007]
[1672696740809,0.2,16776.0,16775.0,0.3007]
[1672696741228,0.2,16776.0,16775.0,0.8981]
[1672696741649,0.2,16776.0,16775.0,1.0021]
[1672696742277,0.3045,16776.0,16773.0,0.3007]
[1672696742483,0.1047,16774.0,16772.0,0.1046]
[1672696743223,0.2,16773.0,16772.0,0.1046]
[1672696743436,0.2,16776.0,16772.0,0.9141]
[1672696743748,0.2,16776.0,16775.0,0.2083]
[1672696744490,0.2,16776.0,16775.0,0.104]
[1672696745321,0.2,16776.0,16774.0,0.1047]
[1672696745322,0.3045,16776.0,16774.0,0.1047]
[1672696745531,0.2087,16775.0,16771.0,0.1047]
[1672696745746,0.1041,16773.0,16771.0,0.1047]
[1672696746169,0.2,16772.0,16771.0,0.1047]
[1672696746374,0.2,16772.0,16771.0,0.1044]
[1672696747313,0.3043,16772.0,16770.0,0.5304]
[1672696747735,0.3043,16772.0,16770.0,0.2297]
[1672696748051,0.1047,16771.0,16770.0,0.125]
[1672696749842,0.1043,16771.0,16767.0,0.104]
[1672696750051,0.1043,16771.0,16766.0,0.1047]
[1672696750052,0.1047,16768.0,16766.0,0.1047]
[1672696750471,0.2,16767.0,16766.0,0.1047]
[1672696750887,0.3047,16767.0,16765.0,0.4054]
[1672696751744,0.3047,16767.0,16765.0,0.3007]
[1672696751745,0.1047,16766.0,16765.0,0.3007]
[1672696752167,0.2,16765.0,16763.0,0.3007]
[1672696752480,0.1047,16764.0,16763.0,0.3007]
[1672696752898,0.2,16767.0,16763.0,0.6144]
[1672696753108,0.3296,16773.0,16766.0,0.2094]
[1672696753314,0.3296,16773.0,16771.0,0.1047]
[1672696753524,0.7054,16776.0,16771.0,0.1047]
[1672696753730,0.2,16772.0,16770.0,0.3007]
[1672696754050,0.2,16770.0,16767.0,0.4054]
[1672696754262,0.2,16770.0,16765.0,0.2088]
[1672696754263,0.1047,16768.0,16766.0,0.1038]
[1672696754462,0.1047,16767.0,16763.0,0.3007]
[1672696754676,0.3007,16768.0,16763.0,0.3007]
[1672696754893,0.2,16767.0,16765.0,0.3007]
[1672696755099,0.1047,16766.0,16765.0,0.3007]
[1672696755310,0.1045,16766.0,16765.0,0.3007]
[1672696755519,0.325,16770.0,16765.0,0.5088]
[1672696755728,0.325,16770.0,16769.0,0.1047]
[1672696755951,0.1047,16772.0,16769.0,0.3047]
[1672696756271,0.2,16773.0,16770.0,0.3007]
[1672696756573,0.3047,16773.0,16771.0,0.104]
[1672696756784,0.1047,16772.0,16769.0,0.1047]
[1672696756987,0.1047,16770.0,16768.0,0.4053]
[1672696757194,0.1047,16770.0,16768.0,0.4045]
[1672696757412,0.2,16769.0,16768.0,0.4045]
[1672696759724,0.2,16769.0,16767.0,0.1047]
[1672696759937,0.1047,16768.0,16764.0,0.6047]
[1672696760146,0.1041,16766.0,16764.0,0.6047]
[1672696760362,0.1041,16766.0,16764.0,0.4047]
[1672696760670,0.2,16765.0,16764.0,0.4047]
[1672696761090,0.3045,16765.0,16764.0,0.3007]
[1672696762979,0.3045,16765.0,16764.0,0.4054]
[1672696763186,0.2,16765.0,16764.0,0.4054]
[1672696763392,0.1,16767.0,16764.0,0.3007]
[1672696763601,0.314,16768.0,16766.0,0.3007]
[1672696763821,0.2,16769.0,16767.0,0.2]
[1672696764028,0.2,16769.0,16768.0,0.3007]
[1672696768020,0.5007,16769.0,16766.0,0.3007]
[1672696768231,0.6177,16769.0,16766.0,0.3007]
[1672696769499,0.6177,16769.0,16764.0,0.4174]
[1672696770653,0.6177,16769.0,16765.0,0.1]
[1672696771069,0.2,16769.0,16767.0,0.1161]
[1672696771703,0.2,16769.0,16767.0,0.117]
[1672696772018,0.2,16769.0,16768.0,0.5007]
[1672696772331,0.5325,16770.0,16768.0,1.0347]
[1672696772332,0.3325,16770.0,16768.0,1.0347]
[1672696772548,0.3325,16770.0,16769.0,0.1161]
[1672696772746,0.4047,16775.0,16768.0,0.5007]
[1672696772950,0.2,16773.0,16770.0,0.3007]
[1672696773164,0.5007,16773.0,16768.0,0.5007]
[1672696773900,0.5007,16773.0,16768.0,0.3007]
[1672696776527,0.3007,16771.0,16766.0,0.3007]
[1672696776847,0.2,16770.0,16764.0,0.3007]
[1672696777056,0.3007,16769.0,16764.0,0.3007]
[1672696777261,0.3007,16767.0,16762.0,0.3007]
[1672696777467,0.2,16766.0,16763.0,0.2]
[1672696779998,0.2,16766.0,16764.0,0.3007]
[1672696780418,0.2,16766.0,16765.0,0.2]
[1672696780943,0.2,16766.0,16764.0,0.3007]
[1672696781468,0.2,16766.0,16765.0,0.1]
[1672696781996,0.2,16766.0,16764.0,0.3007]
[1672696784088,0.2,16766.0,16765.0,0.1]
[1672696785350,0.2,16766.0,16764.0,0.3007]
[1672696786613,0.2,16766.0,16764.0,0.3898986]
[1672696787463,0.2,16766.0,16765.0,0.2]
[1672696788299,0.2,16766.0,16764.0,0.3898986]
[1672696789149,0.2,16766.0,16763.0,0.2229965]
[1672696789358,0.2,16766.0,16763.0,0.0891986]
[1672696789887,0.2,16766.0,16762.0,1.1210965]
[1672696790092,0.2,16766.0,16763.0,0.2891986]
[1672696790299,0.2,16766.0,16763.0,0.2]
[1672696790721,0.2,16766.0,16762.0,1.1210965]
[1672696790938,0.2,16766.0,16763.0,0.1]
[1672696791879,0.2,16766.0,16762.0,0.9872986]
[1672696792198,0.2,16766.0,16763.0,0.2]
[1672696793565,0.2,16766.0,16762.0,0.8981]
[1672696794085,0.2,16766.0,16763.0,0.2]
[1672696794826,0.2,16766.0,16762.0,0.8981]
[1672696795239,0.2,16766.0,16763.0,0.2]
[1672696796079,0.2,16766.0,16763.0,0.5007]
[1672696797661,0.2,16768.0,16766.0,0.2]
[1672696798388,0.2,16768.0,16767.0,0.3007]
[1672696801870,0.2,16768.0,16765.0,0.3007]
[1672696802709,0.2,16768.0,16767.0,0.3007]
[1672696803439,0.3167,16769.0,16767.0,0.3007]
[1672696803659,0.2,16768.0,16767.0,0.3007]
[1672696804082,0.2,16768.0,16767.0,0.30046565]
[1672696804290,0.2,16768.0,16767.0,0.2882126]
[1672696815751,0.2,16768.0,16766.0,0.3007]
[1672696815959,0.2,16768.0,16767.0,0.2]
[1672696816693,0.2,16768.0,16766.0,0.3007]
[1672696817330,0.2,16768.0,16767.0,0.2]
[1672696817858,0.2,16768.0,16766.0,0.3007]
[1672696819432,0.2,16768.0,16767.0,0.2]
[1672696821117,0.2,16768.0,16767.0,0.316]
[1672696821325,0.3167,16769.0,16767.0,0.316]
[1672696821536,0.3291,16772.0,16768.0,0.3007]
[1672696821854,0.2,16771.0,16770.0,0.3007]
[1672696822060,0.2,16771.0,16770.0,0.4177]
[1672696824688,0.2,16771.0,16769.0,0.117]
[1672696824903,0.2,16771.0,16768.0,0.3007]
[1672696827320,0.3161,16771.0,16768.0,0.3007]
[1672696830364,0.5007,16773.0,16770.0,0.4177]
[1672696830574,0.2,16773.0,16771.0,0.116]
[1672696831620,0.6173,16773.0,16769.0,0.116]
[1672696832779,0.6173,16773.0,16770.0,0.2]
[1672696833620,0.6173,16773.0,16769.0,0.116]
[1672696835932,0.2,16771.0,16769.0,0.4167]
[1672696837615,0.2,16771.0,16769.0,0.116]
[1672696839199,0.2,16771.0,16769.0,0.0829]
[1672696841190,0.2,16771.0,16770.0,0.1]
[1672696841401,0.2,16771.0,16769.0,0.2829]
[1672696842976,0.2,16771.0,16769.0,0.0829]
[1672696847302,0.2,16771.0,16769.0,0.0835]
[1672696854013,0.2,16771.0,16770.0,0.4672]
[1672696854861,0.2,16771.0,16770.0,0.46700886]
[1672696862655,0.2,16771.0,16770.0,0.3836]
[1672696863490,0.2,16771.0,16769.0,0.0836]
[1672696867164,0.2,16771.0,16768.0,0.0829]
[1672696867165,0.2834,16771.0,16768.0,0.0829]
[1672696872015,0.2,16768.0,16764.0,0.0836]
[1672696872217,0.0836,16767.0,16765.0,0.3007]
[1672696872432,0.2,16768.0,16766.0,0.0836]
[1672696874109,0.5007,16768.0,16766.0,0.0836]
[1672696874322,0.5843,16768.0,16765.0,0.3007]
[1672696874528,0.1672,16766.0,16763.0,0.91768042]
[1672696874847,0.1,16764.0,16763.0,0.91768042]
[1672696876635,0.1,16764.0,16763.0,0.61698042]
[1672696877059,0.1,16764.0,16763.0,0.91768042]
[1672696880111,0.1828,16764.0,16763.0,0.61698042]
[1672696880522,0.1828,16764.0,16763.0,0.56158042]
[1672696880738,0.4835,16764.0,16763.0,0.56158042]
[1672696880952,1.0809,16764.0,16763.0,0.53148042]
[1672696881269,1.0809,16764.0,16763.0,0.11240815]
[1672696881480,0.00237799,16763.0,16761.0,0.6169307]
[1672696881794,0.0836,16762.0,16761.0,0.6169307]
[1672696882002,0.881,16762.0,16761.0,0.6169307]
[1672696882204,0.2836,16762.0,16761.0,0.6169307]
[1672696882417,0.2,16762.0,16761.0,0.9176307]
[1672696886614,0.2831,16762.0,16761.0,0.9176307]
[1672696887674,0.2831,16762.0,16761.0,0.6169307]
[1672696888519,0.3666,16762.0,16761.0,0.6169307]
[1672696892305,0.6673,16762.0,16761.0,0.20437144]
[1672696893455,1.2647,16762.0,16761.0,0.20437144]
[1672696893670,1.2647,16762.0,16761.0,1.44e-06]
[1672696893873,0.7974,16761.0,16758.0,1.0]
[1672696894080,0.0832,16759.0,16758.0,1.0]
[1672696894401,0.1668,16759.0,16758.0,1.0]
[1672696901127,0.7642,16759.0,16758.0,1.0]
[1672696902910,0.7642,16759.0,16758.0,0.9998]
[1672696903122,0.7642,16759.0,16758.0,0.9985]
[1672696903327,0.7642,16759.0,16758.0,0.9984]
[1672696904070,1.0649,16759.0,16758.0,0.9081]
[1672696904281,1.0649,16759.0,16758.0,0.8584]
[1672696904491,1.0649,16759.0,16758.0,0.6835]
[1672696905022,1.0649,16759.0,16758.0,0.6834]
[1672696905229,1.0649,16759.0,16758.0,0.4664]
[1672696907328,0.9817,16759.0,16758.0,0.4664]
[1672696909748,1.0646,16759.0,16758.0,0.4664]
[1672696915952,1.0646,16759.0,16754.0,0.3007]
[1672696915953,0.7974,16758.0,16754.0,0.3007]
[1672696916156,0.0834,16755.0,16754.0,0.3007]
[1672696920687,0.0834,16755.0,16752.0,0.6839]
[1672696920897,0.2,16754.0,16752.0,0.3839]
[1672696921422,0.2,16754.0,16753.0,0.2]
[1672696924468,0.2,16754.0,16752.0,0.3839]
[1672696926888,0.2,16754.0,16753.0,0.1]
[1672696927307,0.2,16754.0,16752.0,0.3838]
[1672696928664,0.2,16754.0,16753.0,0.2]
[1672696929088,0.2,16754.0,16752.0,0.3838]
[1672696929510,0.2,16754.0,16753.0,0.1]
[1672696929925,0.2,16754.0,16752.0,0.3838]
[1672696930552,0.2,16754.0,16752.0,0.0831]
[1672696930770,0.2,16754.0,16752.0,0.3838]
[1672696931198,0.0836,16753.0,16751.0,0.3007]
[1672696931505,0.0829,16752.0,16751.0,0.3007]
[1672696931714,0.0836,16753.0,16751.0,0.3007]
[1672696931925,0.2,16752.0,16751.0,0.3007]
[1672696933083,0.2,16752.0,16751.0,0.28935225]
[1672696936657,0.2,16752.0,16750.0,0.0836]
[1672696937069,0.2,16752.0,16749.0,0.5007]
[1672696937070,0.2836,16752.0,16749.0,0.5007]
[1672696937283,0.2836,16752.0,16749.0,0.3007]
[1672696938970,0.881,16752.0,16749.0,0.3007]
[1672696939176,0.1672,16750.0,16749.0,0.3007]
[1672696940120,0.2,16749.0,16748.0,0.2]
[1672696940329,0.2828,16749.0,16748.0,0.2]
[1672696940650,0.8802,16749.0,16747.0,0.3007]
[1672696940863,0.0836,16750.0,16747.0,0.3837]
[1672696941065,0.0836,16750.0,16749.0,0.3007]
[1672696942015,0.2836,16750.0,16749.0,0.3007]
[1672696943274,0.2836,16750.0,16747.0,0.3837]
[1672696943596,0.2836,16750.0,16748.0,0.2]
[1672696943805,0.1,16749.0,16747.0,0.3837]
[1672696944015,0.1836,16749.0,16747.0,0.3007]
[1672696944225,0.2,16748.0,16747.0,0.3007]
[1672696946427,0.2836,16748.0,16745.0,0.3007]
[1672696946634,0.0833,16746.0,16745.0,0.3007]
[1672696947269,0.0836,16746.0,16745.0,0.3007]
[1672696948322,0.0832,16747.0,16745.0,0.3007]
[1672696948531,0.7974,16748.0,16746.0,0.0831]
[1672696948741,0.7974,16748.0,16747.0,0.5007]
[1672696949792,0.2,16748.0,16747.0,0.5007]
[1672696950739,0.1831,16749.0,16747.0,0.5007]
[1672696950955,0.1831,16749.0,16748.0,0.2]
[1672696951484,0.1831,16749.0,16747.0,0.5007]
[1672696952211,0.1,16749.0,16747.0,0.5007]
[1672696953362,0.0829,16748.0,16747.0,0.3007]
[1672696956633,0.2,16750.0,16747.0,0.3841]
[1672696956835,0.2,16750.0,16749.0,0.3007]
[1672696962734,0.2,16750.0,16748.0,0.2]
[1672696963043,0.2,16750.0,16749.0,0.3007]
[1672696964201,0.2836,16750.0,16747.0,0.3007]
[1672696964416,0.0834,16748.0,16747.0,0.3007]
[1672696967149,0.0836,16748.0,16747.0,0.3007]
[1672696967671,0.0836,16748.0,16745.0,0.3843]
[1672696967881,0.0831,16747.0,16746.0,0.1]
[1672696974076,0.2836,16748.0,16746.0,0.1]
[1672696974286,0.2836,16748.0,16747.0,0.3007]
[1672696976075,0.0836,16748.0,16747.0,0.3007]
[1672696976290,0.0836,16749.0,16747.0,0.3007]
[1672696976613,0.2836,16750.0,16748.0,0.2]
[1672696977134,0.2,16750.0,16748.0,0.2836]
[1672696977341,0.2,16750.0,16749.0,0.3007]
[1672696977550,0.2,16752.0,16750.0,0.1]
[1672696977966,0.3835,16754.0,16751.0,0.3839]
[1672696978180,0.2,16755.0,16753.0,0.2]
[1672696978813,0.2,16755.0,16752.0,0.0829]
[1672696979017,0.2,16755.0,16751.0,0.3007]
[1672696979018,0.0833,16753.0,16751.0,0.3007]
[1672696979235,0.0836,16752.0,16749.0,0.3007]
[1672696979550,0.0836,16752.0,16750.0,0.2]
[1672696982383,0.2828,16753.0,16750.0,0.2836]
[1672696982592,0.2828,16753.0,16751.0,0.3007]
[1672696982799,0.2828,16753.0,16752.0,0.2]
[1672696983433,0.2,16753.0,16752.0,0.2]
[1672696988386,0.2,16753.0,16751.0,0.3842]
[1672696990287,0.0828,16752.0,16749.0,0.3843]
[1672696990491,0.0828,16752.0,16750.0,0.2]
[1672696990701,0.2,16753.0,16750.0,0.2]
[1672696990702,0.0836,16753.0,16750.0,0.2836]
[1672696991016,0.2836,16755.0,16751.0,0.3836]
[1672696991225,0.2836,16755.0,16752.0,0.2]
[1672696992591,0.2836,16755.0,16751.0,0.3836]
[1672696992804,0.2836,16755.0,16752.0,0.2]
[1672696993019,0.0834,16753.0,16751.0,0.3007]
[1672696993336,0.2832,16752.0,16751.0,0.3007]
[1672696997331,0.2,16752.0,16751.0,0.3007]
[1672697006368,0.2833,16753.0,16752.0,0.2]
[1672697006569,0.2,16753.0,16752.0,0.2]
[1672697007623,0.19983978,16753.0,16752.0,0.2]
[1672697011407,0.19983978,16753.0,16752.0,0.1]
[1672697011827,0.19983978,16753.0,16751.0,0.5836]
[1672697013621,0.19983978,16753.0,16751.0,0.3836]
[1672697017083,0.19983978,16753.0,16752.0,0.2]
[1672697019290,0.19983978,16753.0,16751.0,0.3836]
[1672697019918,0.19983978,16753.0,16752.0,0.1]
[1672697020664,0.19983978,16753.0,16751.0,0.5836]
[1672697020972,0.19983978,16753.0,16752.0,0.2]
[1672697021180,0.2,16755.0,16752.0,0.3662]
[1672697021398,0.2,16755.0,16754.0,0.3007]
[1672697035282,0.3046,16755.0,16754.0,0.3007]
[1672697037488,0.3046,16755.0,16753.0,0.1044]
[1672697037702,0.3046,16755.0,16754.0,0.3007]
[1672697051787,0.1045,16754.0,16752.0,0.3007]
[1672697051997,0.3039,16753.0,16752.0,0.3007]
[1672697054738,0.3046,16753.0,16752.0,0.3007]
[1672697060837,0.3046,16753.0,16752.0,0.30059699]
[1672697061047,0.3046,16753.0,16752.0,0.3007]
[1672697067243,0.3041,16753.0,16752.0,0.3007]
[1672697071449,0.1046,16754.0,16753.0,0.2]
[1672697075871,0.1046,16754.0,16752.0,0.4046]
[1672697076082,0.1046,16754.0,16753.0,0.2]
[1672697078919,0.10452769,16754.0,16753.0,0.2]
[1672697079232,0.10452769,16754.0,16752.0,0.4053]
[1672697079435,0.10452769,16754.0,16753.0,0.2]
[1672697080487,0.10452769,16754.0,16752.0,0.4053]
[1672697080915,0.10452769,16754.0,16753.0,0.3007]
[1672697085970,0.10452769,16754.0,16752.0,0.1046]
[1672697086175,0.10452769,16754.0,16753.0,0.3007]
[1672697089343,0.1046,16754.0,16753.0,0.3007]
[1672697100383,0.2,16755.0,16753.0,0.6053]
[1672697100596,0.2,16755.0,16754.0,0.409]
[1672697100802,0.902,16757.0,16754.0,0.409]
[1672697101121,0.902,16757.0,16755.0,0.4051]
[1672697101636,0.3046,16757.0,16755.0,0.4051]
[1672697102797,0.3046,16757.0,16755.0,0.4053]
[1672697107198,0.2,16757.0,16756.0,0.1046]
[1672697114755,0.2,16757.0,16756.0,0.2046]
[1672697115182,0.2,16757.0,16756.0,0.1046]
[1672697115598,0.3039,16758.0,16756.0,0.3046]
[1672697115815,0.2,16758.0,16757.0,0.4046]
[1672697116023,0.3231,16759.0,16757.0,0.5099]
[1672697116225,0.1046,16762.0,16758.0,0.1036]
[1672697116438,0.1046,16762.0,16760.0,0.1046]
[1672697116653,0.2,16761.0,16760.0,0.1046]
[1672697117274,0.3046,16761.0,16758.0,0.3046]
[1672697118124,0.3046,16761.0,16759.0,0.3007]
[1672697125262,0.3046,16761.0,16760.0,0.1]
[1672697125894,0.3046,16761.0,16759.0,0.3007]
[1672697126741,0.3046,16761.0,16759.0,0.30063163]
[1672697127156,0.304,16761.0,16759.0,0.40523163]
[1672697127999,0.304,16761.0,16760.0,0.1]
[1672697128949,0.2,16761.0,16760.0,0.2039]
[1672697129371,0.2,16761.0,16760.0,0.2044]
[1672697130315,0.2,16762.0,16760.0,0.2046]
[1672697130525,0.2,16762.0,16761.0,0.1044]
[1672697132210,0.3046,16762.0,16760.0,0.2046]
[1672697135250,0.3046,16762.0,16760.0,0.1046]
[1672697136411,0.3046,16762.0,16759.0,0.40523163]
[1672697136412,0.4053,16761.0,16759.0,0.1046]
[1672697136622,0.2,16760.0,16759.0,0.1046]
[1672697137354,0.2,16760.0,16759.0,0.1036]
[1672697146282,0.2,16760.0,16759.0,0.4043]
[1672697157332,0.2,16760.0,16759.0,0.4053]
[1672697177199,0.2,16760.0,16759.0,0.4043]
[1672697177722,0.2,16760.0,16759.0,0.1036]
[1672697181386,0.2,16760.0,16759.0,0.10347399]
[1672697186018,0.2,16760.0,16759.0,0.40417399]
[1672697197157,0.2,16760.0,16759.0,0.4051]
[1672697207144,0.2,16760.0,16759.0,0.4053]
[1672697226395,0.2,16760.0,16759.0,4.1753]
[1672697230279,0.2,16760.0,16759.0,0.4053]
[1672697231644,0.3039,16760.0,16759.0,0.3007]
[1672697232493,0.3039,16760.0,16757.0,0.4053]
[1672697232809,0.1046,16759.0,16757.0,0.4053]
[1672697233017,0.1,16758.0,16757.0,4.1753]
[1672697233961,0.1,16758.0,16757.0,4.17520887]
[1672697237319,0.1,16758.0,16757.0,4.1753]
[1672697239115,0.1,16758.0,16757.0,3.8746]
[1672697239326,0.1,16758.0,16757.0,4.1753]
[1672697240382,0.1039,16759.0,16758.0,0.2]
[1672697240797,0.3046,16760.0,16758.0,0.3046]
[1672697240996,0.3046,16760.0,16759.0,0.3007]
[1672697241411,0.3046,16760.0,16759.0,4.0707]
[1672697241626,0.1046,16760.0,16759.0,4.0707]
[1672697247306,0.104,16761.0,16759.0,4.1751]